bitfinex-derivatives/quotes_SOLF0:USTF0_20250111
["timestamp","ask_amount","ask_price","bid_price","bid_amount"]
[1736620443084,2.6717,187.23,187.2,7.10663743]
[1736620444198,7.10663743,187.25,187.2,7.10663743]
[1736620444491,7.10663743,187.23,187.13,12.68932912]
[1736620444693,7.10663743,187.23,187.17,7.10663743]
[1736620444996,2.6718,187.23,187.19,7.10663743]
[1736620445797,2.6718,187.23,187.19,9.77873743]
[1736620449895,2.6718,187.22,187.19,9.77873743]
[1736620450294,7.10663743,187.25,187.19,9.77873743]
[1736620451098,2.6717,187.23,187.19,9.77873743]
[1736620455192,68.53489556,187.26,187.21,7.10663743]
[1736620455397,68.53489556,187.26,187.23,7.10663743]
[1736620455798,68.53489556,187.26,187.25,2.6714]
[1736620455996,68.53489556,187.26,187.25,9.77803743]
[1736620457994,68.53489556,187.26,187.25,7.10663743]
[1736620461498,68.53489556,187.26,187.25,9.77803743]
[1736620463599,2.6706,187.31,187.27,2.671]
[1736620463799,2.6706,187.31,187.27,9.77763743]
[1736620464395,4.8477,187.33,187.27,9.77763743]
[1736620464606,2.6707,187.3,187.27,9.77763743]
[1736620465203,2.6705,187.31,187.28,2.6709]
[1736620475210,71.17615163,187.33,187.3,2.6706]
[1736620477212,2.6705,187.32,187.28,2.6709]
[1736620481914,75.61248906,187.33,187.27,7.10663743]
[1736620483218,75.61248906,187.33,187.29,2.6711]
[1736620483219,2.6707,187.32,187.29,2.6711]
[1736620485518,2.6712,187.29,187.25,2.6717]
[1736620485722,7.10663743,187.31,187.19,30.84401649]
[1736620485910,7.10663743,187.29,187.23,7.10663743]
[1736620486709,2.6716,187.27,187.2,7.30932912]
[1736620486913,2.6716,187.27,187.22,7.10663743]
[1736620487113,7.10663743,187.27,187.2,7.30932912]
[1736620487418,7.10663743,187.27,187.21,2.6723]
[1736620488114,2.6719,187.25,187.21,2.6723]
[1736620490119,2.6719,187.24,187.21,2.6723]
[1736620490320,2.6719,187.24,187.2,2.6725]
[1736620497627,2.6719,187.24,187.21,7.10663743]
[1736620505129,4.8644,187.32,187.23,7.10663743]
[1736620505330,4.8644,187.32,187.25,7.10663743]
[1736620505530,11.97103743,187.32,187.27,7.10663743]
[1736620506331,4.8644,187.32,187.27,9.77793743]
[1736620507235,2.671,187.31,187.27,9.77793743]
[1736620512236,2.671,187.3,187.27,9.77793743]
[1736620512840,2.6714,187.28,187.24,2.6718]
[1736620513039,7.10663743,187.3,187.23,7.10663743]
[1736620513834,2.6715,187.27,187.23,9.77853743]
[1736620515033,2.6715,187.27,187.23,2.6719]
[1736620515437,2.6715,187.27,187.23,9.77853743]
[1736620516042,2.6713,187.28,187.24,2.6718]
[1736620516742,2.6713,187.28,187.25,7.10663743]
[1736620516942,2.6709,187.31,187.27,9.77793743]
[1736620518249,2.6709,187.31,187.28,2.6712]
[1736620518450,4.2958,187.32,187.28,2.6712]
[1736620518645,67.91353118,187.34,187.29,7.10663743]
[1736620518850,67.91353118,187.34,187.31,7.10663743]
[1736620519045,70.58393118,187.34,187.31,7.10663743]
[1736620519451,70.58393118,187.34,187.3,2.671]
[1736620519652,70.58393118,187.34,187.31,7.10663743]
[1736620526750,67.91353118,187.34,187.31,7.10663743]
[1736620526955,2.6706,187.33,187.31,7.10663743]
[1736620527352,2.67,187.38,187.31,7.10663743]
[1736620527650,7.10663743,187.38,187.33,7.10663743]
[1736620527851,2.6701,187.37,187.33,9.77703743]
[1736620528253,7.10663743,187.38,187.33,7.10663743]
[1736620528452,9.77653743,187.38,187.33,7.10663743]
[1736620528656,2.6699,187.38,187.35,7.10663743]
[1736620528847,66.71524356,187.4,187.36,2.6701]
[1736620529048,69.38494356,187.4,187.36,2.6701]
[1736620530558,2.6697,187.39,187.36,2.6701]
[1736620530858,2.6697,187.39,187.35,9.77683743]
[1736620531462,2.6697,187.39,187.36,2.6701]
[1736620532954,2.6697,187.39,187.35,9.77683743]
[1736620533360,2.6697,187.39,187.35,2.6702]
[1736620533559,2.6697,187.39,187.35,9.77683743]
[1736620541669,2.6699,187.38,187.35,9.77683743]
[1736620543568,66.71524356,187.4,187.35,7.10663743]
[1736620543871,7.10663743,187.37,187.3,7.10663743]
[1736620544478,2.6705,187.34,187.3,9.77753743]
[1736620545173,2.6708,187.32,187.3,7.10663743]
[1736620547071,7.10663743,187.35,187.28,7.10663743]
[1736620547274,2.6708,187.31,187.28,7.10663743]
[1736620547774,2.671,187.3,187.28,7.10663743]
[1736620548273,2.6712,187.29,187.25,2.6716]
[1736620548465,7.10663743,187.31,187.25,7.10663743]
[1736620550075,2.6714,187.27,187.25,7.10663743]
[1736620552275,2.6714,187.27,187.23,2.672]
[1736620552476,2.6714,187.27,187.23,9.77863743]
[1736620552874,2.6716,187.26,187.23,7.10663743]
[1736620553177,7.10663743,187.29,187.23,7.10663743]
[1736620553678,2.6718,187.25,187.23,7.10663743]
[1736620554580,2.6718,187.24,187.23,7.10663743]
[1736620554776,2.6718,187.24,187.21,7.10663743]
[1736620555783,7.10663743,187.27,187.2,7.10663743]
[1736620555977,5.34,187.3,187.2,7.10663743]
[1736620555978,7.10663743,187.25,187.2,7.10663743]
[1736620557280,2.6722,187.22,187.2,7.10663743]
[1736620561285,2.6723,187.21,187.2,7.10663743]
[1736620568593,2.6721,187.22,187.2,7.10663743]
[1736620571697,2.6721,187.22,187.18,14.67555932]
[1736620571998,2.6723,187.21,187.18,14.67555932]
[1736620572193,5.34,187.3,187.1,4.9662]
[1736620572401,7.10663743,187.2,187.06,5.34]
[1736620572696,7.10663743,187.18,187.13,7.10663743]
[1736620572893,2.6731,187.16,187.13,7.10663743]
[1736620573090,7.10663743,187.18,187.13,7.10663743]
[1736620574104,2.6731,187.15,187.1,2.6737]
[1736620574301,2.6731,187.15,187.12,7.10663743]
[1736620578804,7.10663743,187.14,187.05,4.8331]
[1736620579002,7.10663743,187.14,187.05,1.52]
[1736620579205,7.10663743,187.14,187.07,7.10663743]
[1736620579404,2.6741,187.09,187.07,7.10663743]
[1736620583600,7.10663743,187.14,187.07,7.10663743]
[1736620583804,2.6739,187.1,187.07,7.10663743]
[1736620584897,2.6734,187.13,187.09,9.78053743]
[1736620585102,66.1335968,187.16,187.11,7.10663743]
[1736620586007,2.6732,187.15,187.11,7.10663743]
[1736620586604,2.6733,187.14,187.11,7.10663743]
[1736620588310,64.5527968,187.16,187.11,9.78033743]
[1736620588509,2.6731,187.15,187.11,9.78033743]
[1736620589205,64.5527968,187.16,187.11,9.78033743]
[1736620589410,2.6731,187.15,187.11,9.78033743]
[1736620589611,62.9330968,187.16,187.12,2.6734]
[1736620589810,62.9330968,187.16,187.11,7.10663743]
[1736620589811,62.9330968,187.16,187.13,7.10663743]
[1736620591708,65.6061968,187.16,187.13,7.10663743]
[1736620592110,70.03973423,187.16,187.11,7.10663743]
[1736620592310,2.6734,187.13,187.11,7.10663743]
[1736620592506,70.03973423,187.16,187.09,9.78053743]
[1736620592702,7.10663743,187.14,187.09,7.10663743]
[1736620592910,7.10663743,187.14,187.08,9.78073743]
[1736620593110,7.10663743,187.12,187.07,7.10663743]
[1736620594314,2.6741,187.09,187.07,7.10663743]
[1736620594515,2.6741,187.09,187.05,2.6745]
[1736620594711,2.6741,187.09,187.06,7.10663743]
[1736620596015,2.6741,187.09,187.06,9.78093743]
[1736620596215,2.6741,187.08,187.04,7.10663743]
[1736620596717,2.6741,187.08,187.04,9.78113743]
[1736620597116,2.6741,187.08,187.04,7.10663743]
[1736620597315,2.6741,187.08,187.05,2.6745]
[1736620597521,2.674,187.09,187.05,2.6745]
[1736620599316,2.674,187.09,187.06,2.6744]
[1736620599721,1.5637,187.14,187.02,4.85556964]
[1736620599914,8.67033743,187.14,187.09,2.6739]
[1736620600115,8.67033743,187.14,187.07,7.10663743]
[1736620600315,2.6736,187.12,187.07,7.10663743]
[1736620600516,2.6736,187.12,187.08,2.674]
[1736620601508,2.6736,187.12,187.09,2.6739]
[1736620603111,19.25146257,187.05,186.97,29.23731649]
[1736620603417,7.10663743,187.04,186.97,29.23731649]
[1736620603821,7.10663743,187.04,186.96,7.10663743]
[1736620604220,5.36,187.11,186.98,7.10663743]
[1736620604422,7.10663743,187.04,186.98,7.10663743]
[1736620604623,7.10663743,187.05,186.98,7.10663743]
[1736620604816,9.78083743,187.07,187.02,2.6748]
[1736620605517,2.6744,187.06,187.01,2.6751]
[1736620605918,7.10663743,187.07,187.0,7.10663743]
[1736620606419,7.10663743,187.03,186.98,2.6754]
[1736620606725,7.10663743,187.03,186.97,7.10663743]
[1736620607118,2.675,187.02,186.98,2.6755]
[1736620607525,7.10663743,187.03,186.97,7.10663743]
[1736620607724,2.6751,187.01,186.97,7.10663743]
[1736620608120,7.10663743,187.03,186.97,7.10663743]
[1736620608423,9.78153743,187.03,186.98,2.6755]
[1736620609227,7.10663743,187.03,186.98,2.6755]
[1736620609425,2.675,187.02,186.98,2.6755]
[1736620610126,2.6753,187.0,186.97,7.10663743]
[1736620610625,7.10663743,187.03,186.96,1.6705]
[1736620610832,22.9403,187.14,186.8,156.54258248]
[1736620610833,7.10663743,186.98,186.88,7.10663743]
[1736620611126,7.10663743,186.94,186.87,7.10663743]
[1736620611326,2.6764,186.92,186.87,7.10663743]
[1736620611828,7.10663743,186.94,186.87,7.10663743]
[1736620612126,2.6764,186.92,186.87,7.10663743]
[1736620612320,7.10663743,186.94,186.87,7.10663743]
[1736620613133,2.6764,186.92,186.87,7.10663743]
[1736620614022,2.6764,186.92,186.87,9.78373743]
[1736620614723,2.676,186.95,186.89,7.10663743]
[1736620615727,2.6762,186.94,186.89,7.10663743]
[1736620616231,9.78283743,186.94,186.89,7.10663743]
[1736620616826,7.10663743,186.94,186.89,7.10663743]
[1736620617029,1.6747,187.01,186.89,7.10663743]
[1736620617328,1.6747,187.01,186.91,7.10663743]
[1736620617329,7.10663743,186.98,186.91,7.10663743]
[1736620617530,9.78233743,186.98,186.93,2.6762]
[1736620617730,7.10663743,186.98,186.93,2.6762]
[1736620619228,2.6757,186.97,186.91,7.10663743]
[1736620619425,2.6757,186.97,186.92,2.6764]
[1736620621431,7.10663743,186.96,186.91,7.10663743]
[1736620621630,9.78253743,186.96,186.91,9.78313743]
[1736620621828,7.10663743,186.96,186.89,7.10663743]
[1736620622027,1.6747,187.01,186.84,3.1635]
[1736620622028,7.10663743,186.94,186.84,3.1635]
[1736620622224,7.10663743,186.92,186.84,3.1635]
[1736620622427,7.10663743,186.92,186.85,7.10663743]
[1736620622831,7.10663743,186.9,186.85,7.10663743]
[1736620623330,11.14393967,186.93,186.86,2.6772]
[1736620624030,2.6769,186.89,186.85,2.6774]
[1736620626136,11.14393967,186.93,186.84,3.1635]
[1736620626331,11.14393967,186.96,186.84,14.30743967]
[1736620626532,11.14393967,186.96,186.87,11.14393967]
[1736620627335,11.14393967,186.99,186.87,11.14393967]
[1736620628338,2.6758,186.96,186.92,2.6763]
[1736620633137,2.676,186.95,186.87,11.14393967]
[1736620633341,2.676,186.95,186.91,2.6765]
[1736620634534,2.676,186.95,186.87,11.14393967]
[1736620634535,2.676,186.95,186.92,2.6764]
[1736620635139,2.6758,186.96,186.92,2.6764]
[1736620637948,2.676,186.95,186.87,11.14393967]
[1736620638148,2.676,186.95,186.91,2.6765]
[1736620638547,2.6763,186.93,186.84,3.1635]
[1736620638851,2.6763,186.93,186.85,11.14393967]
[1736620640144,2.6763,186.93,186.9,2.6766]
[1736620645351,9.80565801,186.93,186.9,2.6766]
[1736620645552,7.12935801,186.93,186.9,2.6766]
[1736620645748,1.6747,187.01,186.93,2.6762]
[1736620645951,9.80495801,186.98,186.92,7.12935801]
[1736620646154,7.12935801,186.98,186.92,7.12935801]
[1736620646350,7.12935801,186.98,186.94,7.676]
[1736620646543,1.6747,187.01,186.94,7.676]
[1736620646749,7.12935801,186.97,186.94,7.676]
[1736620647253,9.80505801,186.97,186.94,7.676]
[1736620651852,9.80505801,186.97,186.94,5.0]
[1736620652049,2.6759,186.96,186.94,5.0]
[1736620652754,9.80525801,186.95,186.94,5.0]
[1736620683279,2.6759,186.95,186.94,5.0]
[1736620687383,9.80525801,186.95,186.94,5.0]
[1736620716509,2.6769,186.89,186.85,13.00165801]
[1736620718309,2.6769,186.89,186.85,10.32435801]
[1736620718510,2.6769,186.89,186.86,2.6772]
[1736620721007,2.6778,186.82,186.81,7.30932912]
[1736620722506,2.6778,186.82,186.77,38.42267336]
[1736620722507,2.6781,186.8,186.76,7.12935801]
[1736620724307,7.12935801,186.81,186.75,7.12935801]
[1736620724717,2.6786,186.77,186.73,7.12935801]
[1736620729022,2.6789,186.75,186.73,7.12935801]
[1736620734525,2.6787,186.76,186.72,2.6792]
[1736620734724,7.12935801,186.8,186.73,7.12935801]
[1736620735129,2.6782,186.79,186.75,2.6788]
[1736620740737,2.6784,186.78,186.74,2.6789]
[1736620743836,9.80775801,186.78,186.74,2.6789]
[1736620746138,7.12935801,186.78,186.73,7.12935801]
[1736620746333,2.6786,186.76,186.73,7.12935801]
[1736620746528,7.12935801,186.76,186.71,1.6557]
[1736620746728,7.12935801,186.76,186.7,7.12935801]
[1736620746936,2.6791,186.73,186.7,7.12935801]
[1736620748438,7.12935801,186.76,186.7,9.80885801]
[1736620748739,2.679,186.74,186.7,9.80885801]
[1736620753944,2.679,186.74,186.7,7.12935801]
[1736620754141,2.679,186.74,186.71,2.6793]
[1736620756950,2.6786,186.77,186.73,2.679]
[1736620757650,2.6786,186.77,186.72,7.12935801]
[1736620757846,2.6786,186.77,186.74,2.6789]
[1736620758752,10.0906,186.85,186.74,7.12935801]
[1736620758949,2.6782,186.8,186.76,2.6785]
[1736620759348,7.12935801,186.81,186.76,2.6785]
[1736620760154,2.6782,186.79,186.76,2.6785]
[1736620761055,7.12935801,186.81,186.77,2.6785]
[1736620761346,7.12935801,186.83,186.76,7.12935801]
[1736620761746,2.6778,186.82,186.78,2.6783]
[1736620765657,2.6778,186.82,186.79,2.6782]
[1736620766356,7.12935801,186.83,186.8,2.6779]
[1736620766559,2.6775,186.84,186.8,2.6779]
[1736620770658,7.12935801,186.83,186.8,2.6779]
[1736620773259,53.80614522,186.86,186.83,2.6776]
[1736620773463,60.93550323,186.86,186.83,2.6776]
[1736620774461,2.6774,186.85,186.82,2.6777]
[1736620780068,9.80665801,186.86,186.82,2.6777]
[1736620780973,2.6773,186.86,186.82,2.6777]
[1736620781171,9.80665801,186.86,186.82,2.6777]
[1736620791382,2.6773,186.86,186.82,9.80705801]
[1736620791778,6.85647853,186.88,186.85,2.6773]
[1736620791978,7.12935801,186.91,186.86,7.12935801]
[1736620793182,2.6767,186.9,186.87,2.6771]
[1736620793383,7.12935801,186.91,186.87,2.6771]
[1736620793881,9.80585801,186.91,186.87,2.6771]
[1736620796785,2.6765,186.91,186.87,2.6771]
[1736620800186,2.6765,186.91,186.88,2.6769]
[1736620804387,2.6763,186.93,186.9,2.6766]
[1736620804787,2.6763,186.93,186.88,7.12935801]
[1736620804984,2.6763,186.93,186.89,2.6767]
[1736620805185,2.676,186.95,186.9,7.12935801]
[1736620806785,2.676,186.95,186.91,2.6765]
[1736620806985,9.80555801,186.94,186.81,29.23731649]
[1736620807183,7.12935801,186.94,186.87,7.12935801]
[1736620808092,2.6764,186.92,186.89,2.6767]
[1736620809393,2.6762,186.93,186.9,2.6766]
[1736620815498,7.12935801,186.92,186.8,44.78561649]
[1736620815692,7.12935801,186.92,186.86,7.12935801]
[1736620815893,2.6767,186.9,186.86,9.80645801]
[1736620817090,2.6767,186.9,186.86,7.12935801]
[1736620817295,2.6767,186.9,186.87,2.677]
[1736620817895,2.6769,186.89,186.85,2.6773]
[1736620818392,7.12935801,186.9,186.8,4.8321]
[1736620818591,3.2595,186.97,186.8,4.8321]
[1736620818592,2.6772,186.87,186.82,7.12935801]
[1736620818796,7.12935801,186.88,186.82,7.12935801]
[1736620820204,2.6772,186.86,186.83,2.6776]
[1736620822498,7.12935801,186.88,186.82,7.12935801]
[1736620822703,7.12935801,186.88,186.82,9.80705801]
[1736620823305,2.6773,186.86,186.82,9.80705801]
[1736620826912,2.6773,186.86,186.82,2.6777]
[1736620827614,2.6774,186.85,186.82,2.6777]
[1736620834724,4.8013,186.91,186.81,7.12935801]
[1736620835026,2.6772,186.87,186.83,7.12935801]
[1736620836328,2.6772,186.87,186.84,2.6774]
[1736620837128,2.6772,186.87,186.85,7.12935801]
[1736620839431,2.6772,186.87,186.84,2.6774]
[1736620846736,7.12935801,186.88,186.81,7.12935801]
[1736620847332,2.6776,186.84,186.81,9.80715801]
[1736620847538,7.12935801,186.88,186.81,7.12935801]
[1736620848739,2.6776,186.84,186.81,7.12935801]
[1736620851339,2.6777,186.83,186.81,7.12935801]
[1736620852337,2.6775,186.84,186.81,7.12935801]
[1736620852643,2.6775,186.84,186.81,9.80725801]
[1736620868156,2.6775,186.84,186.81,2.6779]
[1736620879170,2.6779,186.82,186.78,9.80755801]
[1736620880470,2.6779,186.82,186.79,2.6782]
[1736620889566,7.12935801,186.84,186.78,7.12935801]
[1736620889871,2.6781,186.8,186.77,2.6784]
[1736620894061,7.12935801,186.82,186.76,7.12935801]
[1736620894271,7.12935801,186.8,186.75,2.6787]
[1736620895073,2.6784,186.78,186.75,2.6787]
[1736620897868,7.12935801,186.8,186.71,3.2058]
[1736620898171,2.6785,186.77,186.73,9.80835801]
[1736620898773,2.6785,186.77,186.73,2.679]
[1736620898962,2.6785,186.77,186.73,9.80835801]
[1736620899475,4.9392,186.84,186.73,7.12935801]
[1736620899663,7.12935801,186.81,186.76,2.6786]
[1736620900175,2.6782,186.8,186.76,2.6786]
[1736620900669,2.678,186.81,186.78,2.6783]
[1736620903075,2.6777,186.83,186.72,1.5813]
[1736620903274,1.5755,186.88,186.79,7.12935801]
[1736620903571,9.80635801,186.88,186.83,9.80695801]
[1736620903781,7.12935801,186.88,186.83,9.80695801]
[1736620904267,2.6772,186.86,186.83,9.80695801]
[1736620904468,7.12935801,186.88,186.83,9.80695801]
[1736620904666,7.12935801,186.9,186.85,2.6773]
[1736620904873,53.20970751,186.89,186.85,9.80665801]
[1736620905678,2.6766,186.9,186.86,2.6772]
[1736620908979,7.12935801,186.88,186.77,29.23731649]
[1736620909179,7.12935801,186.86,186.8,7.12935801]
[1736620909383,7.12935801,186.86,186.82,2.6777]
[1736620909384,9.80665801,186.86,186.82,2.6777]
[1736620910180,2.6773,186.86,186.82,2.6777]
[1736620913384,2.6771,186.87,186.83,2.6775]
[1736620918086,7.12935801,186.89,186.83,2.6775]
[1736620918282,2.6773,186.86,186.83,2.6775]
[1736620920994,2.6771,186.87,186.83,2.6775]
[1736620921800,7.12935801,186.89,186.83,9.80685801]
[1736620921993,2.6772,186.86,186.83,9.80685801]
[1736620924594,2.6772,186.86,186.83,2.6775]
[1736620924795,2.6772,186.86,186.83,9.80685801]
[1736620927900,2.677,186.87,186.84,2.6775]
[1736620928800,2.677,186.87,186.83,9.80695801]
[1736620929002,2.6772,186.86,186.83,2.6776]
[1736620929299,2.6772,186.86,186.83,9.80695801]
[1736620933800,7.12935801,186.88,186.78,3.1797]
[1736620934005,7.12935801,186.88,186.74,29.23731649]
[1736620934006,7.12935801,186.86,186.79,7.12935801]
[1736620934304,7.12935801,186.84,186.79,7.12935801]
[1736620934505,7.12935801,186.84,186.77,7.12935801]
[1736620935106,2.6778,186.82,186.79,2.6781]
[1736620935501,2.6778,186.82,186.79,9.80745801]
[1736620935707,7.12935801,186.86,186.81,2.6778]
[1736620936003,7.12935801,186.86,186.81,9.80715801]
[1736620937404,4.47527067,186.92,186.81,7.12935801]
[1736620937603,2.6772,186.86,186.83,9.80685801]
[1736620942810,2.6772,186.86,186.83,2.6775]
[1736620951019,2.6773,186.85,186.83,2.6775]
[1736620954120,2.6773,186.85,186.81,7.12935801]
[1736620954324,2.6775,186.84,186.78,1.6284]
[1736620954521,2.6775,186.84,186.79,7.12935801]
[1736620956123,2.6775,186.84,186.81,2.6779]
[1736620956324,2.6776,186.83,186.79,7.12935801]
[1736620957132,7.12935801,186.84,186.8,2.678]
[1736620957321,7.12935801,186.82,186.77,7.12935801]
[1736620957526,7.12935801,186.82,186.75,14.43868713]
[1736620958125,2.678,186.8,186.77,2.6785]
[1736620958326,7.12935801,186.82,186.75,7.30932912]
[1736620958531,7.12935801,186.8,186.75,7.30932912]
[1736620958729,2.6783,186.79,186.75,2.6787]
[1736620961431,2.6783,186.79,186.76,2.6786]
[1736620977948,4.6997,186.84,186.75,7.12935801]
[1736620978154,11.82905801,186.84,186.79,7.12935801]
[1736620978951,2.6777,186.83,186.77,7.12935801]
[1736620981354,2.6777,186.83,186.79,7.12935801]
[1736620981955,2.6777,186.83,186.73,3.0505]
[1736620982157,2.6777,186.83,186.8,2.678]
[1736620984160,2.6779,186.81,186.75,2.6786]
[1736620984362,2.6779,186.81,186.75,7.12935801]
[1736620984858,2.6779,186.81,186.77,2.6783]
[1736620985062,2.6779,186.81,186.75,7.12935801]
[1736620986163,2.6779,186.81,186.78,2.6783]
[1736620992461,8.40856196,186.89,186.79,7.12935801]
[1736620992667,7.12935801,186.88,186.81,7.12935801]
[1736620994168,2.6772,186.86,186.83,2.6776]
[1736620997165,2.6769,186.88,186.84,2.6773]
[1736620997371,4.47527067,186.92,186.83,7.12935801]
[1736620997572,7.12935801,186.91,186.85,7.12935801]
[1736620997770,2.6769,186.89,186.85,9.80655801]
[1736620999980,2.6769,186.89,186.86,2.6771]
[1736621000276,7.12935801,186.91,186.85,7.12935801]
[1736621000678,7.12935801,186.91,186.87,2.677]
[1736621002084,2.6766,186.9,186.87,2.677]
[1736621004780,2.6766,186.9,186.87,9.80635801]
[1736621004975,58.62757619,186.93,186.87,7.12935801]
[1736621005181,2.6764,186.92,186.88,2.6769]
[1736621005782,2.6765,186.91,186.88,2.6769]
[1736621006682,2.6765,186.91,186.87,7.12935801]
[1736621006884,2.6765,186.91,186.87,9.80635801]
[1736621012486,2.6766,186.9,186.87,9.80635801]
[1736621019597,58.62757619,186.93,186.79,4.7219]
[1736621019890,7.12935801,186.89,186.83,7.12935801]
[1736621023091,2.6773,186.86,186.83,7.12935801]
[1736621024894,7.12935801,186.89,186.83,7.12935801]
[1736621025092,2.6773,186.85,186.83,7.12935801]
[1736621029299,2.6777,186.83,186.8,2.678]
[1736621029502,7.12935801,186.85,186.8,7.12935801]
[1736621031104,2.6777,186.83,186.8,7.12935801]
[1736621031404,7.12935801,186.85,186.8,7.12935801]
[1736621031805,2.6779,186.82,186.8,7.12935801]
[1736621040709,2.6774,186.85,186.82,2.6777]
[1736621040911,56.85821818,186.93,186.83,7.12935801]
[1736621041118,56.85821818,186.93,186.85,7.12935801]
[1736621041318,7.12935801,186.91,186.85,7.12935801]
[1736621043118,2.6771,186.86,186.85,7.12935801]
[1736621044921,2.6768,186.89,186.85,9.80665801]
[1736621045514,2.6768,186.89,186.86,2.6771]
[1736621051619,51.49821818,186.93,186.87,7.12935801]
[1736621051820,2.6765,186.91,186.87,9.80625801]
[1736621052620,51.49821818,186.93,186.87,9.80625801]
[1736621052825,2.6765,186.9,186.87,9.80625801]
[1736621054925,51.49821818,186.93,186.87,7.12935801]
[1736621055126,2.6764,186.92,186.89,7.12935801]
[1736621056130,2.6764,186.92,186.89,9.80605801]
[1736621057136,7.12935801,186.94,186.89,7.12935801]
[1736621057433,1.5981,186.96,186.91,7.12935801]
[1736621058828,46.81970631,187.0,186.91,7.12935801]
[1736621059035,7.12935801,186.97,186.91,7.12935801]
[1736621059335,2.6759,186.95,186.92,2.6763]
[1736621060034,2.6759,186.95,186.91,7.12935801]
[1736621060035,2.6759,186.95,186.91,9.80575801]
[1736621060240,46.81970631,187.0,186.93,7.12935801]
[1736621060838,49.49500631,187.0,186.95,7.12935801]
[1736621061332,49.49500631,187.0,186.96,2.6757]
[1736621064435,49.49500631,187.0,186.97,9.80495801]
[1736621064631,46.81970631,187.0,186.97,9.80495801]
[1736621064836,2.675,187.01,186.97,9.80495801]
[1736621065037,7.12935801,187.03,186.97,7.12935801]
[1736621065236,2.6747,187.03,186.99,7.12935801]
[1736621066741,2.6749,187.02,186.99,7.12935801]
[1736621068143,3.0878,187.06,186.99,7.12935801]
[1736621068342,2.6747,187.03,186.99,9.80455801]
[1736621070743,2.675,187.02,186.97,2.6755]
[1736621070945,7.12935801,187.02,186.97,9.80485801]
[1736621071242,3.0878,187.06,186.97,9.80485801]
[1736621071448,2.675,187.02,186.98,2.6754]
[1736621074147,2.675,187.02,186.99,2.6753]
[1736621077354,2.675,187.02,186.99,9.80465801]
[1736621090961,2.675,187.02,187.0,2.6751]
[1736621094567,10.21715801,187.06,186.99,7.12935801]
[1736621094771,2.6745,187.05,187.02,2.6748]
[1736621099471,8.65005801,187.1,187.04,2.6745]
[1736621100473,2.6741,187.08,187.04,2.6745]
[1736621100671,2.6741,187.08,187.05,7.12935801]
[1736621104071,8.65005801,187.1,187.05,7.12935801]
[1736621104277,2.6742,187.07,187.05,7.12935801]
[1736621104673,2.6742,187.07,187.04,2.6745]
[1736621104674,7.12935801,187.08,186.98,3.1773]
[1736621104871,7.12935801,187.06,187.01,7.12935801]
[1736621105179,7.12935801,187.06,186.99,9.80465801]
[1736621105379,2.6748,187.03,186.99,9.80465801]
[1736621107478,2.6748,187.03,187.0,2.6751]
[1736621107784,2.6746,187.04,187.01,7.12935801]
[1736621108280,7.12935801,187.08,187.01,7.12935801]
[1736621108476,2.6742,187.07,187.03,7.12935801]
[1736621108677,2.6742,187.07,187.05,7.12935801]
[1736621109783,1.5207,187.1,187.05,7.12935801]
[1736621109976,2.674,187.08,187.05,7.12935801]
[1736621112886,5.3449,187.2,187.08,2.674]
[1736621113075,11.59935514,187.15,187.09,7.12935801]
[1736621113281,4.46999713,187.15,187.09,7.12935801]
[1736621113482,4.3233,187.13,187.09,9.80315801]
[1736621113975,4.46999713,187.15,187.1,2.6737]
[1736621114177,2.6732,187.14,187.1,2.6737]
[1736621114576,2.6732,187.14,187.11,7.12935801]
[1736621117484,2.6728,187.17,187.13,9.80265801]
[1736621118580,11.93905801,187.19,187.13,9.80265801]
[1736621118785,7.12935801,187.17,187.1,7.12935801]
[1736621120385,7.12935801,187.18,187.1,7.12935801]
[1736621121179,2.6733,187.14,187.1,9.80305801]
[1736621122586,2.6733,187.14,187.12,7.12935801]
[1736621124982,2.6733,187.14,187.1,2.6737]
[1736621124983,2.6735,187.12,187.08,2.6739]
[1736621125185,7.12935801,187.14,187.08,7.12935801]
[1736621125787,2.6739,187.1,187.08,7.12935801]
[1736621125990,2.6739,187.1,187.06,2.6742]
[1736621126191,2.6739,187.1,187.06,9.80355801]
[1736621126389,2.674,187.09,187.05,9.80375801]
[1736621128587,2.6742,187.07,187.04,7.12935801]
[1736621128984,2.674,187.08,187.04,9.80385801]